Cogmind - Beta 16 @@@ ROGUE MODE // 2025.11.21 @ 15:42:51 Player: sweetandcool Result: Destroyed by Y9-5NY(R) with Subdweller Machine Gun Performance ------------- Evolutions (0) 0 Regions Visited (3) 600 Robots Destroyed (35) 175 Value Destroyed (719) 719 Prototype IDs (4) 80 Alien Tech Used (0) 0 Bonus (-22) -22 TOTAL SCORE: 1552 Bonus ------- Friendly Fire -22 Cogmind --------- Core Integrity 0/250 Matter 189/300 Energy 196/200 System Corruption 0% Temperature Cool (2) Movement Treading (160) Location -10/Subcaves Parts ------- > --- POWER (1) -------- Subdweller Power Source > --- PROPULSION (2) --- Light Treads Light Treads > --- UTILITY (2) ------ Large Storage Unit > --- WEAPON (2) ------- Beamcaster Grenade Launcher > --- INVENTORY (15) --- Light Ion Engine Light Angular Momentum Engine Light Treads Cargo Legs Large Storage Unit Reaction Control System Scrap Shield Hacking Suite Makeshift Shrapnel Gun Assault Cannon Grenade Launcher Datajack Improved Datajack Peak State ------------ > --- POWER ------------ Subdweller Power Source > --- PROPULSION ------- Light Treads Light Treads > --- UTILITY ---------- Large Storage Unit Medium Armor Plating > --- WEAPON ----------- Beamcaster Grenade Launcher > --- INVENTORY -------- Light Ion Engine Light Angular Momentum Engine Light Treads Cargo Legs Large Storage Unit Reaction Control System Scrap Shield Hacking Suite Makeshift Shrapnel Gun Assault Cannon Grenade Launcher Datajack Improved Datajack [Rating: 17] Favorites ----------- Power Light Ion Engine Engine Light Ion Engine Propulsion Light Treads Treads Light Treads Utility Large Storage Unit Device Terrain Scanner Storage Large Storage Unit Protection Medium Armor Plating Weapon Assault Rifle Energy Gun Heavy EM Pulse Gun Ballistic Gun Assault Rifle Launcher Grenade Launcher Special Melee Weapon Datajack Build | -11 -10 -10 -10 ------- Run | Yrd Mat Min Sub Slots Evolved . | . . . . Power . | . . . . Propulsion . | . . . . Utility . | . . . . Weapon . | . . . . Parts Attached 19 | 7 3 4 5 Power 3 | 1 . 1 1 Engine 3 | 1 . 1 1 Core . | . . . . Reactor . | . . . . Propulsion 4 | 2 . . 2 Treads 4 | 2 . . 2 Leg . | . . . . Wheel . | . . . . Hover . | . . . . Flight . | . . . . Utility 6 | 2 2 1 1 Device 1 | . . 1 . Storage 3 | 2 1 . . Processor . | . . . . Hackware . | . . . . Protection 2 | . 1 . 1 Artifact . | . . . . Weapon 6 | 2 1 2 1 Energy Gun 3 | 1 1 1 . Energy Cannon . | . . . . Ballistic Gun 1 | 1 . . . Ballistic Cannon . | . . . . Launcher 1 | . . 1 . Special Weapon . | . . . . Impact Weapon . | . . . . Slashing Weapon . | . . . . Piercing Weapon . | . . . . Special Melee Weapon 1 | . . . 1 Unidentified Prototypes . | . . . . Parts Lost 5 | . . 1 4 Power . | . . . . Propulsion 2 | . . . 2 Utility 2 | . . . 2 Weapon 1 | . . 1 . Highest Loss Streak 3 | . . 1 3 To Critical Strikes 1 | . . . 1 Average Backups 10 | . 7 12 13 Power 1 | . 1 1 1 Propulsion 2 | . 2 3 2 Utility 3 | . 2 4 4 Weapon 1 | . . 2 3 Tool/Special . | . . . . Unused Backups 14 | . 2 . 12 Power 1 | . . . 1 Propulsion 2 | . . . 2 Utility 6 | . 1 . 5 Weapon 4 | . 1 . 3 Tool/Special 1 | . . . 1 Average Slot Usage (%) 99 | . 99 99 97 Engine 14 | . 14 14 14 Treads 27 | . 28 28 25 Device 8 | . . 13 2 Storage 17 | . 25 14 14 Protection 1 | . 2 . 11 Energy Gun 6 | . 13 2 12 Ballistic Gun 12 | . 14 13 . Launcher 8 | . . 12 14 Peak Build Rating 17 | 7 10 14 17 Average Rating 9 | 5 8 9 15 On Entrance 7 | . 7 10 14 Avg Prop Armor Cover (%) . | . . . . Naked Turns . | . . . . Heaviest Build 40 | 16 35 35 40 Greatest Support 40 | 40 40 40 40 Greatest Overweight (x) 2 | 2 . . . Average Overweight (x) . | . . . . Largest Inventory Capacity 15 | 8 15 15 15 Average Capacity 12 | 7 9 15 15 Most Carried 15 | 1 10 15 15 Average Carried 10 | . 7 12 14 Final Capacity 15 | 8 15 15 15 Final Carried 15 | 1 10 15 15 Class Distribution -------------------- 99% | Mutant Dominant Class ---------------- Mutant | -10/Materials Mutant | -10/Mines Mutant | -10/Subcaves Resources | -11 -10 -10 -10 ----------- Run | Yrd Mat Min Sub Matter Collected 572 | 279 153 71 69 Remotely . | . . . . Salvage Created 988 | 79 641 33 235 Parts 68 | 2 45 3 18 Haulers Intercepted 2 | . 2 . . Recyclers Shooed 1 | . . 1 . Parts Field Recycled . | . . . . Retrieved Matter . | . . . . Parts Self-Destructed . | . . . . Prevented . | . . . . Parts Restored . | . . . . Kills | -11 -10 -10 -10 ------- Run | Yrd Mat Min Sub Combat Hostiles Destroyed 27 | . 17 2 8 Guns 16 | . 14 2 . AOE 11 | . 3 . 8 Classes Destroyed 8 | 1 6 . 1 Builder 1 | . 1 . . Hauler 2 | . 2 . . Recycler 1 | 1 . . . Operator 1 | . 1 . . Watcher 3 | . 3 . . Swarmer 14 | . 12 2 . Grunt 5 | . 5 . . Subdweller 8 | . . . 8 Best Kill Streak 6 | 1 6 2 5 Combat Bots Only 5 | . 4 2 5 Max Kills in Single Turn 2 | 1 2 1 2 Gunslinging . | . . . . Exploded 2 | . 2 . 2 Melee . | . . . . Uniques/NPCs Destroyed . | . . . . Combat | -11 -10 -10 -10 -------- Run | Yrd Mat Min Sub Hostile Shots Fired 100 | . 50 19 31 Missed 25 | . 12 7 6 Hits 75 | . 38 12 25 Projectile 75 | . 38 12 25 AOE 5 | . . . 5 Critical Strikes 2 | . . . 2 Damage Taken 1289 | . 361 108 820 Core 253 | . 84 17 152 Absorbed by Shields . | . . . . Core Remaining (%) 100 | 100 . . . Volleys Fired 75 | 3 45 12 15 Largest 2 | 2 2 2 1 Hottest 75 | 60 65 65 75 Shots Fired 127 | 6 86 20 15 Gun 114 | 6 86 20 2 Cannon . | . . . . Launcher 13 | . . . 13 Special . | . . . . Kinetic 56 | 3 41 12 . Thermal 13 | 3 8 . 2 Explosive 13 | . . . 13 Electromagnetic 45 | . 37 8 . Robot Hit Streak 9 | 4 6 3 9 Robot Miss Streak 5 | 1 5 4 1 Penetration Max . | . . . . Secondary Targets 3 | . 3 . . Max Gunslinging Chain 1 | . 1 . . Shots Hit Robots 72 | 5 44 10 13 Core Hits 55 | 2 28 3 22 Critical Kills 1 | . 1 . . Critical Parts Destroyed 1 | . 1 . . Critical Strikes 2 | . 2 . . Destroy 2 | . 2 . . Melee Attacks 1 | . . . 1 Impact . | . . . . Slashing . | . . . . Piercing . | . . . . Sneak Attacks 1 | . . . 1 Combat Hostiles . | . . . . Follow-up Attacks . | . . . . Damage Inflicted 2555 | 65 760 167 1563 Guns 873 | 65 641 167 . Cannons . | . . . . Explosions 1682 | . 119 . 1563 Melee . | . . . . Ramming . | . . . . Kinetic 364 | 44 210 110 . Thermal 183 | 21 162 . . Explosive 1563 | . . . 1563 Electromagnetic 445 | . 388 57 . Impact . | . . . . Slashing . | . . . . Piercing . | . . . . Highest Corruption . | . . . . Average Corruption . | . . . . Corruption Purged . | . . . . Corruption Blocked . | . . . . Overload Shots . | . . . . Overflow Damage . | . . . . Projectiles . | . . . . Explosions . | . . . . Melee . | . . . . Knockbacks . | . . . . Impact . | . . . . Kinetic . | . . . . Secondary . | . . . . Self-Inflicted Damage 18 | . . . 18 Shots 1 | . . . 1 Rammed . | . . . . Targets Rammed . | . . . . Kicked . | . . . . Crushed . | . . . . Highest Temperature 48 | . 48 24 . Average Temperature 11 | . 11 12 . Received Heat Transfer 192 | . 90 . 102 Siege Activations . | . . . . Martial Activations . | . . . . Shielding Activations . | . . . . Robots Disrupted . | . . . . Combat Hostiles . | . . . . Robots Corrupted . | . . . . Combat Hostiles . | . . . . Parts Fried . | . . . . Impact Corruptions . | . . . . Robots Melted . | . . . . Combat Hostiles . | . . . . Parts Melted 1 | . 1 . . Heat Transferred 200 | 50 150 . . Parts Sabotaged . | . . . . Parts Stolen . | . . . . Parts Stripped . | . . . . Power Chain Reactions 2 | . 2 . . Alert | -11 -10 -10 -10 ------- Run | Yrd Mat Min Sub Maximum Alert Level . | . . . . Low Security (%) 100 | 100 100 100 . Level 1 . | . . . . Level 2 . | . . . . Level 3 . | . . . . Level 4 . | . . . . Level 5 . | . . . . High Security . | . . . . Max Security . | . . . . Peak Influence 191 | 5 191 30 . Initial 19 | . . 19 . Average 36 | . 100 . . Influence Increases 559 | 5 504 50 . Destroy 0b10 Robot/C 380 | . 340 40 . Destroy 0b10 Robot/NC 40 | 5 35 . . Destroy Leader 90 | . 80 10 . Successful Hack 15 | . 15 . . Disable Machine 15 | . 15 . . Destroy Structure 4 | . 4 . . Lose Combat Pursuer 15 | . 15 . . Influence Decreases 559 | 5 454 100 . Entered New Map 31 | . . 31 . Time Decay 518 | 5 454 59 . Lost Part 10 | . . 10 . Squads Dispatched 4 | . 3 1 . Investigation 2 | . 1 1 . Extermination . | . . . . Reinforcement 2 | . 2 . . Assault . | . . . . Garrison . | . . . . Intercept . | . . . . Searches Triggered . | . . . . Construction Impeded . | . . . . Haulers Reinforced . | . . . . Active Scanning Responses . | . . . . Cargo Convoy Interrupts . | . . . . Stealth | -11 -10 -10 -10 --------- Run | Yrd Mat Min Sub Distress Signals 3 | . 2 1 . Communications Jammed . | . . . . Distress Signals . | . . . . Times Spotted 41 | . 23 2 16 Peak Tracking Total 8 | . 7 2 8 Tactical Retreats 1 | . 1 . . Traps | -11 -10 -10 -10 ------- Run | Yrd Mat Min Sub Traps Triggered . | . . . . Indirectly . | . . . . Trap Hack Attempts . | . . . . Triggered . | . . . . Disarmed . | . . . . Reprogrammed . | . . . . Reused . | . . . . Traps Extracted . | . . . . Installed . | . . . . Triggered . | . . . . Machines | -11 -10 -10 -10 ---------- Run | Yrd Mat Min Sub Machines Disabled 1 | . 1 . . Max in Single Turn 1 | . 1 . . Machines Repaired . | . . . . Machines Dismantled . | . . . . Machines Sabotaged . | . . . . Overloaded Fab Kills . | . . . . Hacking | -11 -10 -10 -10 --------- Run | Yrd Mat Min Sub Machines Accessed 7 | . 5 2 . Terminals 5 | . 5 . . Fabricators . | . . . . Repair Stations . | . . . . Recycling Units . | . . . . Scanalyzers . | . . . . Garrison Access . | . . . . Total Hacks 19 | . 17 2 . Successful 7 | . 5 2 . Failed 12 | . 12 . . Catastrophic 4 | . 4 . . Database Lockouts . | . . . . Manual 5 | . 5 . . Terminals 17 | . 17 . . Fabricators . | . . . . Repair Stations . | . . . . Recycling Units . | . . . . Scanalyzers . | . . . . Garrison Access . | . . . . Terminal Hacks 7 | . 5 2 . Prototype ID Bank 2 | . 2 . . Open Door 2 | . . 2 . Locate Traps 1 | . 1 . . Transport Status 1 | . 1 . . Hauler Manifests 1 | . 1 . . Fabricator Hacks . | . . . . Repair Station Hacks . | . . . . Recycling Unit Hacks . | . . . . Scanalyzer . | . . . . Garrison Access Hacks . | . . . . Unauthorized Hacks . | . . . . Terminals . | . . . . Fabricators . | . . . . Repair Stations . | . . . . Recycling Units . | . . . . Scanalyzers . | . . . . Garrison Access . | . . . . Data Cores Recovered . | . . . . Used . | . . . . Hacking Detections 5 | . 5 . . Full Trace Events 1 | . 1 . . Feedback Events . | . . . . Feedback Blocked . | . . . . Robot Schematics Acquired . | . . . . Robots Built . | . . . . Authchips . | . . . . Time . | . . . . Total Robot Build Rating . | . . . . Part Schematics Acquired . | . . . . Parts Built . | . . . . Authchips . | . . . . Time . | . . . . Total Part Build Rating . | . . . . Part Studies Acquired . | . . . . Parts Repaired . | . . . . Time . | . . . . Parts Recycled . | . . . . Recycled Matter . | . . . . Retrieved Matter . | . . . . Retrieved Components . | . . . . Parts Scanalyzed . | . . . . Part Schematics Acquired . | . . . . Parts Damaged . | . . . . Bothacking | -11 -10 -10 -10 ------------ Run | Yrd Mat Min Sub Used RIF Installer . | . . . . Robots Hacked 1 | . . . 1 Non-combat . | . . . . Combat 1 | . . . 1 Robot Hacks Applied 1 | . . . 1 parse_system 1 | . . . 1 Relay Couplers Released . | . . . . Fabnet Peak Effective % . | . . . . Robots Rewired . | . . . . Allies Hacked . | . . . . Hacks Repelled . | . . . . Allies | -11 -10 -10 -10 -------- Run | Yrd Mat Min Sub Total Allies . | . . . . Largest Group . | . . . . Highest-Rated Group . | . . . . Highest-Rated Ally . | . . . . Total Orders . | . . . . Ally Attacks . | . . . . Total Damage . | . . . . Kills . | . . . . Allies Corrupted . | . . . . Allies Melted . | . . . . Intel | -11 -10 -10 -10 ------- Run | Yrd Mat Min Sub Active Infowar (turns) 2061 | . . 2046 15 Terrain 2061 | . . 2046 15 Robot Analysis Total . | . . . . Derelict Logs Recovered 1 | . . 1 . Drone Launches . | . . . . Drone Recoveries . | . . . . Exploration | -11 -10 -10 -10 ------------- Run | Yrd Mat Min Sub Turns Passed 3576 | 88 1217 2112 159 Spaces Moved 1332 | 46 661 552 73 Core 7 | 7 . . . Treads 1325 | 39 661 552 73 Legs . | . . . . Wheels . | . . . . Hover . | . . . . Flight . | . . . . Fastest Speed 50 | 50 160 160 160 Average Speed 159 | 149 160 160 160 Slowest Speed 160 | 160 160 160 160 Overloaded Moves . | . . . . Propulsion Burnouts . | . . . . Robots Hopped . | . . . . Potential Cave-ins . | . . . . Cave-ins Triggered . | . . . . Exploration Rate (%) 51 | 4 92 99 11 Regions Visited 3 Branch Regions 2 Pre-discovered Areas . | . . . . Known Exits Taken . | . . . . Unknown Exits Taken 3 | 1 1 1 . Scrap Searched 3 | . . 3 . Spaces Dug . | . . . . Terrain Destroyed 56 | . 3 . 53 Melee . | . . . . Projectile . | . . . . AOE 56 | . 3 . 53 Terrain Rammed . | . . . . Walls Destroyed . | . . . . Machines Disabled . | . . . . Actions | -11 -10 -10 -10 --------- Run | Yrd Mat Min Sub Total 2652 | 56 736 1760 100 Wait 1195 | . 11 1184 . Move 1329 | 45 660 551 73 Hop . | . . . . Pick Up 22 | 1 12 7 2 Fast Attach 9 | 7 1 1 . Attach 5 | . . 1 4 Detach . | . . . . Swap 7 | . 2 2 3 Drop 9 | . 5 2 2 Fire 75 | 3 45 12 15 Melee 1 | . . . 1 Ram . | . . . . Kick . | . . . . Crush . | . . . . Escape Stasis . | . . . . Rewire . | . . . . Trap . | . . . . Miscellaneous . | . . . . Route ------- -11/Scrapyard -10/Materials (discovered 4 exits: [*Mat x3] / *Min) -10/Mines (discovered 3 exits: [*Mat x2] / [*Sub]) -10/Subcaves History --------- Turn | Location | Event 12 | -11/Scrapyard | Discovered new exit (range 15) 89 | -11/Scrapyard | Entered Materials 193 | -10/Materials | Discovered new exit (range 12) 309 | -10/Materials | Build established: Mutant 505 | -10/Materials | Discovered new exit (range 3) 944 | -10/Materials | Discovered new exit (range 15) 1182 | -10/Materials | Discovered new exit (range 14) 1306 | -10/Materials | Entered Mines 1317 | -10/Mines | Met a Derelict who couldn't figure out how to use a Trap Extractor 1344 | -10/Mines | Met a Derelict bent on vengeance 1364 | -10/Mines | Discovered new exit (range 10) 1527 | -10/Mines | Discovered new exit (range 15) 1735 | -10/Mines | A weapon hastily lodged in a ceiling crevice suddenly fell to the ground 2767 | -10/Mines | Met a Derelict shopkeep closing up shop 3411 | -10/Mines | Discovered new exit (range 6) 3418 | -10/Mines | Entered Subcaves 3472 | -10/Subcaves | Ambushed by Subdwellers from Twisted Machinery 3473 | -10/Subcaves | Core integrity fell below 50% 3475 | -10/Subcaves | A Subdweller sparked back to life 3475 | -10/Subcaves | A Subdweller sparked back to life 3475 | -10/Subcaves | A Subdweller sparked back to life 3510 | -10/Subcaves | Found Prototype Leg 3521 | -10/Subcaves | Lost 3 parts (2n1u) 3565 | -10/Subcaves | Ambushed by swarm of Subdwellers 3565 | -10/Subcaves | Ambushed by Subdwellers from Twisted Machinery 3565 | -10/Subcaves | Ambushed by Subdwellers from Twisted Machinery 3567 | -10/Subcaves | Ambushed by Subdwellers from Twisted Machinery 3567 | -10/Subcaves | Ambushed by Subdwellers from Twisted Machinery 3568 | -10/Subcaves | Core integrity fell below 20% 3571 | -10/Subcaves | Ambushed by Subdweller buried in earth 3577 | -10/Subcaves | Destroyed by Y9-5NY(R) with Subdweller Machine Gun Last Messages --------------- 03567_ ML-ZR4(R) emerges from the Twisted Machinery. 03567_ L4-32Q(R) destroyed. 03567_ 9C-NGB(R) angrily emerges from the Twisted Machinery. 03567_ Y9-5NY(R) angrily emerges from the Twisted Machinery. 03568_ 2L-WF4(R) affixes Scrap Shield Fragment to Scrap Shield. 03569_ VL-2AW(R) emerges from the Twisted Machinery. 03569_ VL-2AW(R) destroyed. 03569_ ML-ZR4(R) destroyed. [Achievement: Do Not Disturb] 03571_ Med. Armor Plating destroyed. 03571_ XA-KGW(R) affixes Scrap Shield Fragment to Scrap Shield. 03571_ 9C-NGB(R) destroyed. 03572_ WD-H0U(R): "NOSTUCKSUB!" 03572_ The unstable cave ceiling collapses. 03574_ ZQ-4XX(g): "Sorry we're late! Had another grouchy Sub to deal with. Who's the new fellow?" 03574_ HV Slug penetrates Wall. 03577_ HV Slug penetrates LI-0T5(R). 03577_ LI-0T5(R) suffers critical hit (Destroy). 03577_ LI-0T5(R) knocked back. Map ----- +----------------------------------------------------+ | ?????????????????????????????????????????????????? | | ?????????????????????????????????????????????????? | | ?????????????????????????????????????????????????? | | ?????????????????????????????????????????????????? | | ?????????????????????????????????????????????????? | | ?????????????????????????????????????????????????? | | ?????????????????????????????????????????????????? | | ?????????????????????????????????????????????????? | | ???????????????? ???????????????????????????????? | | ???????????????? ?????????????????????????????? | | ???????????????? ????????????????????????????? | | ???????????????? ?????????????????????????????? | | ??????????????## ?????? ? ???????????????????? | | ??????????????# ??????? ???????????????????? | | ??????????????# ??????? #??????????????????? | | ??????????????# #?????## #??????????????????? | | ??????????????# #???### #??????????????????? | | ?????????????## #??## ???????????????????? | | ????????????## ##?# ????????????????????? | | ????????????# #?# ????????????????????? | | ???????????## #?# ?????????????????????? | | ???????????#" " #??# #?????????????????????? | | ??????????### #??## " #?????????????????????? | | ?????????## #### """ ####??????????????????? | | ????????## " g """"" ##?????????????????? | | ????????# " """@ ##????????????????? | | ????????# ## " % #????????????????? | | ?????#### ##### #????????????????? | | ????##" & #??#"""## h R ; #??????????????? | | ????#" "###""""##RRR ####??????????????? | | ##### """"""""# R!% ????????????????? | | # ## """"""""## &]==! #???????????????? | | " # "###"""""#= % [*##???????????????? | | ##???????# [= ] #???????????????? | | ##???????##![R ##???????????????? | | ! #????????# ####????????????????? | | #???????? ##???????????????????? | | "##????????###????????????????????? | | "#????????????????????????????????? | | # "" "#????????????????????????????????? | | ####### ###"###????????????????????????????????? | | ??????#####??##??????????????????????????????????? | | ?????????????????????????????????????????????????? | | ?????????????????????????????????????????????????? | | ?????????????????????????????????????????????????? | | ?????????????????????????????????????????????????? | | ?????????????????????????????????????????????????? | | ?????????????????????????????????????????????????? | | ?????????????????????????????????????????????????? | | ?????????????????????????????????????????????????? | +----------------------------------------------------+ Best States ------------- Heat Dissipation 25 Energy Generation 15 Energy Capacity 200 Matter Stores 300 Matter Capacity 300 Sight Range 16 Terrain Scan Range 14 Terrain Scan Density 10 Armor Coverage 225 Evasion (%) 40 Recoil Reduction 2 Item Schematics ----------------- None Robot Schematics ------------------ None Fabricated ------------ Nothing Repaired ---------- Nothing Studied --------- None Alien Tech Used ----------------- None Achievements -------------- Do Not Disturb Challenges ------------ None Game ------ Seed CarbideAuthchipCartridge Manual? 0 Play Time 00:20:29 Cumulative 124.4 hours Start 2025.11.21 @ 15:19:14 End 2025.11.21 @ 15:42:51 Sessions 1 Manual Loads 0 Difficulty Rogue Special Mode None Game No. 91 Rogue 91 Adventurer 0 Explorer 0 Win Type - Total 0 Types 0/0/0/0/0/0/0/0/0/0 Lore% 33 Gallery% 49 Achievement% 35 Wizard Run 0 Options --------- Layout 0 ASCII 0 Keyboard 0 Movement Numpad Keybinds 0 Fullscreen 1 Font 18/SmallcapsGlow Map View 76x50 Zoom Use 0% Tactical HUD 1 Map Filters NONE Filters NONE Steam 1 RUN: 49c58ec0-d6cd-4c61-9f4b-3a80314cad07